Cogmind - Beta 13 @@@ ROGUE MODE // 2024.03.12 @ 21:35:41 Player: Baxter Result: Destroyed by G-73 Enforcer with Phase Gun Performance ------------- Evolutions (6) 3000 Regions Visited (12) 2400 Robots Destroyed (166) 830 Value Destroyed (4714) 4714 Prototype IDs (32) 640 Alien Tech Used (0) 0 Bonus (314) 314 TOTAL SCORE: 11898 Bonus ------- Follower Combat Kills 14 Aligned with FarCom 300 Cogmind --------- Core Integrity 0/1150 Matter 300/300 Energy 99/100 System Corruption 6% Temperature Cool (9) Movement Core (50) Location -4/Upper Caves Parts ------- > --- POWER (1) -------- (None) > --- PROPULSION (5) --- (None) > --- UTILITY (11) ----- (None) > --- WEAPON (2) ------- (None) > --- INVENTORY (5) ---- Light Fission Core Trap Scanner Layered Medium Armor Plating Hacking Suite System Restoration Module Peak State ------------ > --- POWER ------------ Micro Fission Core > --- PROPULSION ------- Wheel Armored Huge Wheel > --- UTILITY ---------- Huge Storage Unit Advanced Terrain Scan Processor Advanced Melee Analysis Suite Advanced Melee Analysis Suite Improved Target Analyzer Core Analyzer Advanced Transmission Jammer Hacking Suite Hacking Suite Improved Hacking Suite System Shield > --- WEAPON ----------- Dispersion Rifle Compact Ion Cannon > --- INVENTORY -------- Improved Deuterium Engine Light Fission Core Cooled VTOL Module Cooled VTOL Module Cooled VTOL Module Advanced Heat Sink Medium Storage Unit Compact Matter Pod Trap Scanner Advanced Terrain Scanner Weapon Mount Improved Light Armor Plating Layered Light Armor Plating Layered Medium Armor Plating Medium Insulated Plating Hacking Suite Hacking Suite Advanced Hacking Suite System Restoration Module Compact Ion Cannon Heavy Rocket Launcher [Rating: 81] Favorites ----------- Power Light Ion Engine Engine Light Ion Engine Power Core Fission Core Propulsion Compact Wheel Treads Improved Treads Leg VSS Leg Wheel Compact Wheel Hover Unit Improved Airjet Flight Unit Cooled VTOL Module Utility Hacking Suite Device Trap Scanner Storage Huge Storage Unit Processor Advanced Visual Processing Unit Hackware Hacking Suite Protection Medium Insulated Plating Weapon Spear Energy Gun EM Pulse Gun Energy Cannon Light EM Pulse Cannon Ballistic Gun Shotgun Launcher Mini Grenade Launcher Impact Weapon Power Maul Slashing Weapon Longsword +1 Piercing Weapon Spear Build | -11 -10 -10 -9 -9 -9 -8 -8 -7 -6 -5 -4 -4 ------- Run | Yrd Mat Min Mat Min Exi Min Mat Fac Fac Fac Fac Upp Slots Evolved 12 | . . . 2 . . . 2 2 2 2 2 . Power . | . . . . . . . . . . . . . Propulsion 3 | . . . 1 . . . . . 2 . . . Utility 9 | . . . 1 . . . 2 2 . 2 2 . Weapon . | . . . . . . . . . . . . . Parts Attached 196 | 7 10 3 25 4 . 2 30 33 29 30 23 . Power 25 | 1 2 1 6 1 . 1 3 4 1 3 2 . Engine 17 | 1 2 1 6 1 . 1 2 2 . . 1 . Core 8 | . . . . . . . 1 2 1 3 1 . Reactor . | . . . . . . . . . . . . . Propulsion 69 | 2 3 2 6 2 . . 8 13 10 17 6 . Treads 10 | 1 1 . 2 . . . 4 1 1 . . . Leg 2 | . . . . . . . . . 2 . . . Wheel 38 | 1 2 2 3 2 . . 3 9 7 6 3 . Hover 1 | . . . . . . . . 1 . . . . Flight 18 | . . . 1 . . . 1 2 . 11 3 . Utility 70 | 2 1 . 4 . . . 12 12 17 9 13 . Device 25 | 1 . . 2 . . . 3 2 8 4 5 . Storage 3 | 1 1 . 1 . . . . . . . . . Processor 10 | . . . 1 . . . 2 1 . 3 3 . Hackware 6 | . . . . . . . 2 3 . . 1 . Protection 26 | . . . . . . . 5 6 9 2 4 . Artifact . | . . . . . . . . . . . . . Weapon 32 | 2 4 . 9 1 . 1 7 4 1 1 2 . Energy Gun 6 | . 2 . 3 . . . . . . . 1 . Energy Cannon 3 | . . . 1 . . 1 . . . . 1 . Ballistic Gun 12 | 2 2 . 2 1 . . 3 2 . . . . Ballistic Cannon . | . . . . . . . . . . . . . Launcher 5 | . . . 3 . . . 1 1 . . . . Special Weapon . | . . . . . . . . . . . . . Impact Weapon 1 | . . . . . . . . . . 1 . . Slashing Weapon 4 | . . . . . . . 3 . 1 . . . Piercing Weapon 1 | . . . . . . . . 1 . . . . Special Melee Weapon . | . . . . . . . . . . . . . Unidentified Prototypes 8 | . . . 3 . . . 1 4 . . . . Parts Lost 59 | . . 1 7 3 . . 5 6 11 12 14 . Power 12 | . . . 2 1 . . 2 . 1 3 3 . Propulsion 28 | . . 1 1 2 . . 1 1 9 6 7 . Utility 7 | . . . . . . . 1 3 . 1 2 . Weapon 12 | . . . 4 . . . 1 2 1 2 2 . Highest Loss Streak 6 | . . 1 3 3 . . 4 2 2 5 6 . To Critical Strikes 1 | . . . . . . . . 1 . . . . Average Slot Usage (%) 88 | . 98 98 94 97 100 100 94 89 88 78 68 . Engine 4 | . 14 13 10 10 11 11 4 2 1 . 1 . Core 2 | . . . . . . . 3 4 3 4 2 . Treads 4 | . 14 2 11 11 11 11 7 . . . . . Leg 1 | . . . . . . . . . 8 . . . Wheel 15 | . 14 25 20 20 22 22 16 15 16 10 8 . Device 3 | . . . 9 11 11 11 4 2 2 1 2 . Storage 8 | . 25 28 13 11 11 11 9 7 6 5 4 . Processor 9 | . . . 8 11 11 11 9 8 6 15 22 . Hackware 16 | . . . . . . . 17 26 26 21 18 . Protection 2 | . . . . . . . 5 5 2 3 1 . Energy Gun 2 | . 2 28 11 6 . . . . . . . . Ballistic Gun 4 | . 25 . 3 4 11 11 4 5 . . . . Launcher 1 | . . . 2 11 11 . 2 . . . . . Slashing Weapon 3 | . . . . . . . 8 5 2 4 . . Piercing Weapon 1 | . . . . . . . . 1 6 4 . . Naked Turns 194 | . . . . . . . . . . . 148 46 Heaviest Build 105 | 12 18 19 91 88 88 91 105 103 102 98 99 . Greatest Support 70 | 20 20 26 32 26 26 26 32 44 44 64 70 3 Greatest Overweight (x) 30 | . 1 1 5 4 3 3 6 8 8 30 9 . Average Overweight (x) 2 | . . . 2 3 3 3 2 2 3 3 1 . Largest Inventory Capacity 25 | 8 8 8 25 25 25 25 25 25 25 25 25 5 Average Capacity 22 | 7 8 8 20 25 25 25 25 25 25 25 22 5 Most Carried 25 | 5 8 8 20 19 20 20 25 25 25 25 23 5 Average Carried 21 | 3 7 7 13 16 19 19 24 24 24 24 18 5 Final Capacity 25 | 8 8 8 25 25 25 25 25 25 25 25 5 5 Final Carried 25 | 5 8 8 17 19 20 19 25 25 25 22 5 5 Class Distribution -------------------- 33% | Hacker-Mutant 20% | Mutant 15% | Hacker-Assassin 12% | Scavenger-Mutant 8% | Hacker-Gladiator 7% | Scavenger-Assassin 3% | Skirmisher Dominant Class ---------------- Mutant | -10/Materials Scavenger-Mutant | -10/Mines Mutant | -9/Materials Mutant | -9/Mines Mutant | -9/Exiles Skirmisher | -8/Mines Scavenger-Mutant | -8/Materials Hacker-Mutant | -7/Factory Hacker-Mutant | -6/Factory Hacker-Gladiator | -5/Factory Hacker-Mutant | -4/Factory Mutant | -4/Upper Caves Resources | -11 -10 -10 -9 -9 -9 -8 -8 -7 -6 -5 -4 -4 ----------- Run | Yrd Mat Min Mat Min Exi Min Mat Fac Fac Fac Fac Upp Matter Collected 2769 | 276 316 36 427 7 . 85 408 460 332 239 183 . Remotely . | . . . . . . . . . . . . . Salvage Created 6634 | 97 608 147 874 54 . 97 1849 1152 676 698 382 . Parts 371 | 4 32 6 68 11 . 3 88 61 50 33 15 . Haulers Intercepted 11 | . 1 . 3 . . . 4 3 . . . . Recyclers Shooed 5 | . 1 . 4 . . . . . . . . . Parts Field Recycled . | . . . . . . . . . . . . . Retrieved Matter . | . . . . . . . . . . . . . Parts Self-Destructed . | . . . . . . . . . . . . . Prevented . | . . . . . . . . . . . . . Kills | -11 -10 -10 -9 -9 -9 -8 -8 -7 -6 -5 -4 -4 ------- Run | Yrd Mat Min Mat Min Exi Min Mat Fac Fac Fac Fac Upp Combat Hostiles Destroyed 97 | . 12 2 14 8 . 3 21 16 9 7 5 . Melee 54 | . . . . . . . 20 16 9 6 3 . Guns 27 | . 12 2 12 . . 1 . . . . . . Cannons 1 | . . . . . . . . . . . 1 . AOE 14 | . . . 2 8 . 2 1 . . 1 . . Classes Destroyed 15 | 2 5 . 4 . . . 3 1 . . . . Worker 17 | . 1 2 3 1 . . 1 1 6 2 . . Builder 2 | . . . 1 . . . 1 . . . . . Tunneler 4 | 1 . . . . . . . 1 . 1 1 . Hauler 11 | . 1 . 3 . . . 4 3 . . . . Recycler 16 | 1 1 . 1 . . . 7 3 . 2 1 . Operator 7 | . 1 . 2 . . . . 1 2 1 . . Watcher 12 | . . . 3 . . . 5 1 1 2 . . Swarmer 21 | . 3 . 4 8 . . 3 3 . . . . Grunt 41 | . 9 2 7 . . 3 11 5 1 1 2 . Brawler 1 | . . . . . . . 1 . . . . . Duelist 1 | . . . 1 . . . . . . . . . Sentry 9 | . . . 2 . . . 3 1 3 . . . Specialist 2 | . . . . . . . 2 . . . . . Hunter 4 | . . . . . . . 1 2 1 . . . Programmer 18 | . . . . . . . . 5 4 6 3 . Best Kill Streak 6 | 1 3 2 5 5 . 3 4 6 2 3 2 . Combat Bots Only 5 | . 3 2 3 4 . 3 4 5 2 2 2 . Max Kills in Single Turn 3 | 1 1 2 1 3 . 1 1 1 1 1 1 . Gunslinging . | . . . . . . . . . . . . . Exploded 3 | . . . 1 3 . 1 1 . . 1 . . Melee 1 | . . . . . . . 1 1 1 1 1 . Uniques/NPCs Destroyed . | . . . . . . . . . . . . . Combat | -11 -10 -10 -9 -9 -9 -8 -8 -7 -6 -5 -4 -4 -------- Run | Yrd Mat Min Mat Min Exi Min Mat Fac Fac Fac Fac Upp Hostile Shots Fired 756 | . 54 8 84 4 . 8 120 115 184 59 99 21 Missed 202 | . 18 5 18 3 . 3 18 26 54 16 31 10 Damage Taken 9245 | . 388 97 911 67 . 141 1522 1300 1545 930 2109 235 Core 2782 | . 52 . 240 23 . 50 413 219 302 328 920 235 Absorbed by Shields . | . . . . . . . . . . . . . Redirected to Shielding 112 | . . . . . . . . 3 . 68 41 . Ignored by Resistances 42 | . . . . . . . . 42 . . . . Regen/Repaired (Parts) 40 | . . . . . . . 40 . . . . . Core Remaining (%) 60 | 100 . 79 . . . 21 24 68 64 67 . . Volleys Fired 217 | 4 51 8 100 7 . 8 3 . 2 . 34 . Largest 2 | 2 2 2 2 1 . 1 1 . 1 . 2 . Hottest 178 | 40 40 80 112 30 . 30 30 . 25 . 178 . Shots Fired 333 | 8 102 17 139 7 . 8 3 . 2 . 47 . Gun 275 | 8 102 17 124 . . 6 2 . 2 . 14 . Cannon 39 | . . . 6 . . . . . . . 33 . Launcher 19 | . . . 9 7 . 2 1 . . . . . Special . | . . . . . . . . . . . . . Kinetic 179 | 8 102 . 59 . . 6 2 . 2 . . . Thermal 66 | . . . 19 . . . . . . . 47 . Explosive 19 | . . . 9 7 . 2 1 . . . . . Electromagnetic 69 | . . 17 52 . . . . . . . . . Robot Hit Streak 24 | 5 18 11 24 2 . 7 1 . 1 . 5 . Robot Miss Streak 5 | 1 4 2 5 2 . 3 1 . 2 . 1 . Penetration Max . | . . . . . . . . . . . . . Secondary Targets 1 | . . . 1 . . . . . . . . . Max Gunslinging Chain 1 | . . . 1 . . . . . . . . . Shots Hit Robots 442 | 5 70 11 86 2 . 6 85 65 51 36 25 . Core Hits 206 | 4 29 6 49 8 . 9 35 25 21 12 8 . Critical Kills 3 | . . . . . . . . . . . 3 . Critical Parts Destroyed 5 | . . . . . . 1 . . . 1 3 . Critical Strikes 32 | . . . . . . 1 13 5 5 2 6 . Destroy 1 | . . . . . . 1 . . . . . . Smash 7 | . . . . . . . . . . 1 6 . Sever 19 | . . . . . . . 13 3 3 . . . Impale 5 | . . . . . . . . 2 2 1 . . Melee Attacks 354 | . . . . . . . 103 93 90 50 18 . Impact 29 | . . . . . . . . . . 11 18 . Slashing 207 | . . . . . . . 103 57 33 14 . . Piercing 118 | . . . . . . . . 36 57 25 . . Sneak Attacks 49 | . . . . . . . 16 13 11 7 2 . Combat Hostiles 2 | . . . . . . . 1 . . . 1 . Follow-up Attacks 5 | . . . . . . . . . 4 1 . . Damage Inflicted 16485 | 53 718 204 1613 549 . 303 4818 3074 2009 1862 1282 . Guns 2266 | 53 718 161 1200 . . 112 11 . 11 . . . Cannons 413 | . . . 96 . . . . . . . 317 . Explosions 1342 | . . 43 317 549 . 191 242 . . . . . Melee 12436 | . . . . . . . 4565 3074 1998 1862 937 . Ramming 28 | . . . . . . . . . . . 28 . Kinetic 1325 | 53 718 . 420 . . 112 11 . 11 . . . Thermal 708 | . . 43 348 . . . . . . . 317 . Explosive 1145 | . . . 163 549 . 191 242 . . . . . Electromagnetic 843 | . . 161 682 . . . . . . . . . Impact 1736 | . . . . . . . . . . 799 937 . Slashing 8077 | . . . . . . . 4565 2222 797 493 . . Piercing 2623 | . . . . . . . . 852 1201 570 . . Highest Corruption 6 | . 3 3 4 4 4 4 . 1 4 3 6 6 Average Corruption 2 | . 2 3 2 4 4 4 . 1 1 2 5 6 Corruption Purged 7 | . . . . . . . . 1 2 4 . . Corruption Blocked 1 | . . . . . . . . . . . 1 . Effects 96 | . 2 5 21 3 3 7 . 6 16 10 23 . Message Errors 27 | . . 1 5 2 1 2 . 2 4 2 8 . Matter Fused 21 | . 1 1 3 . 1 3 . 1 6 2 3 . Heat Flow Errors 15 | . . . 5 . . . . . 4 2 4 . Energy Discharges 14 | . 1 1 2 1 . 1 . 3 . 1 4 . Parts Rejected 1 | . . 1 . . . . . . . . . . Data Loss (minor) 9 | . . . 3 . 1 . . . 2 1 2 . Data Loss (major) 4 | . . . 1 . . . . . . 2 1 . Misfires 3 | . . 1 2 . . . . . . . . . Alerts 1 | . . . . . . 1 . . . . . . Weapon Failures 1 | . . . . . . . . . . . 1 . Overload Shots . | . . . . . . . . . . . . . Overflow Damage 1901 | . . . 31 22 . . 561 450 127 462 248 . Projectiles 8 | . . . 8 . . . . . . . . . Explosions 45 | . . . 23 22 . . . . . . . . Melee 1848 | . . . . . . . 561 450 127 462 248 . Knockbacks 6 | . . . . . . . . . . 4 2 . Impact 6 | . . . . . . . . . . 4 2 . Kinetic . | . . . . . . . . . . . . . Secondary . | . . . . . . . . . . . . . Self-Inflicted Damage 369 | . . 50 185 59 . 62 . . . . 13 . Shots 10 | . . 1 5 2 . 2 . . . . . . Rammed 4 | . . . . . . . . . . . 4 . Targets Rammed 4 | . . . . . . . . . . . 4 . Kicked . | . . . . . . . . . . . . . Crushed . | . . . . . . . . . . . . . Highest Temperature 261 | . 12 61 246 . . 1 20 7 261 201 252 . Average Temperature 53 | . 7 32 54 . . 1 6 7 126 97 48 . Received Heat Transfer 2068 | . 156 27 222 . . 45 792 351 195 45 163 72 Siege Activations . | . . . . . . . . . . . . . Robots Corrupted . | . . . . . . . . . . . . . Combat Hostiles . | . . . . . . . . . . . . . Parts Fried 11 | . . 2 3 . . . 1 . . 4 1 . Impact Corruptions 18 | . . . . . . . . . . 10 8 . Robots Melted . | . . . . . . . . . . . . . Combat Hostiles . | . . . . . . . . . . . . . Parts Melted 2 | . . . 1 . . . . . . . 1 . Heat Transferred 1101 | . . 50 681 . . . . . . . 370 . Parts Sabotaged . | . . . . . . . . . . . . . Parts Stolen . | . . . . . . . . . . . . . Parts Stripped . | . . . . . . . . . . . . . Power Chain Reactions 4 | . . 1 3 . . . . . . . . . Alert | -11 -10 -10 -9 -9 -9 -8 -8 -7 -6 -5 -4 -4 ------- Run | Yrd Mat Min Mat Min Exi Min Mat Fac Fac Fac Fac Upp Peak Influence 333 | 10 202 176 260 312 . 95 333 224 155 105 120 . Initial 109 | . 6 78 68 101 . . . 102 109 25 9 . Average 77 | 6 115 137 153 234 . 86 98 88 33 34 27 . Maximum Alert Level 1 | . 1 . 1 1 . . 1 1 . . . . Low Security (%) 90 | 100 91 100 75 57 . 100 82 83 100 100 100 . Level 1 9 | . 8 . 24 42 . . 17 16 . . . . Level 2 . | . . . . . . . . . . . . . Level 3 . | . . . . . . . . . . . . . Level 4 . | . . . . . . . . . . . . . Level 5 . | . . . . . . . . . . . . . High Security . | . . . . . . . . . . . . . Max Security . | . . . . . . . . . . . . . Squads Dispatched 43 | . 3 . 3 . . . 2 10 12 4 9 . Investigation 9 | . 2 . 1 . . . . 2 3 1 . . Extermination 13 | . . . . . . . . 4 4 2 3 . Reinforcement 15 | . 1 . 2 . . . 2 4 2 1 3 . Assault . | . . . . . . . . . . . . . Garrison 6 | . . . . . . . . . 3 . 3 . Intercept . | . . . . . . . . . . . . . Searches Triggered . | . . . . . . . . . . . . . Construction Impeded 3 | . . . . . . . 1 1 . . 1 . Haulers Reinforced 2 | . . . . . . . . 2 . . . . Active Scanning Responses . | . . . . . . . . . . . . . Cargo Convoy Interrupts . | . . . . . . . . . . . . . Stealth | -11 -10 -10 -9 -9 -9 -8 -8 -7 -6 -5 -4 -4 --------- Run | Yrd Mat Min Mat Min Exi Min Mat Fac Fac Fac Fac Upp Distress Signals 5 | . 1 . 2 . . . . 1 . 1 . . Communications Jammed . | . . . . . . . . . . . . . Distress Signals . | . . . . . . . . . . . . . Times Spotted 181 | . 21 4 27 5 . 2 42 24 13 17 21 5 Peak Tracking Total 6 | . 5 2 3 4 . 2 5 5 2 2 6 5 Tactical Retreats 18 | . 1 1 1 . . . 8 1 . 1 4 1 Traps | -11 -10 -10 -9 -9 -9 -8 -8 -7 -6 -5 -4 -4 ------- Run | Yrd Mat Min Mat Min Exi Min Mat Fac Fac Fac Fac Upp Traps Triggered 10 | . 5 . 1 . . . 1 . 2 . 1 . Indirectly . | . . . . . . . . . . . . . Trap Hack Attempts . | . . . . . . . . . . . . . Triggered . | . . . . . . . . . . . . . Disarmed . | . . . . . . . . . . . . . Reprogrammed . | . . . . . . . . . . . . . Reused 3 | . . . . . . . 3 . . . . . Traps Extracted . | . . . . . . . . . . . . . Installed 5 | . . . . . . . 5 . . . . . Triggered 3 | . . . . . . . 3 . . . . . Most Traps Carried 5 | . . . . 5 5 5 5 . . . . . Machines | -11 -10 -10 -9 -9 -9 -8 -8 -7 -6 -5 -4 -4 ---------- Run | Yrd Mat Min Mat Min Exi Min Mat Fac Fac Fac Fac Upp Machines Disabled 7 | . . 1 5 . . . . . . . 1 . Max in Single Turn 2 | . . 1 2 . . . . . . . 1 . Machines Repaired . | . . . . . . . . . . . . . Machines Dismantled . | . . . . . . . . . . . . . Machines Sabotaged . | . . . . . . . . . . . . . Overloaded Fab Kills . | . . . . . . . . . . . . . Hacking | -11 -10 -10 -9 -9 -9 -8 -8 -7 -6 -5 -4 -4 --------- Run | Yrd Mat Min Mat Min Exi Min Mat Fac Fac Fac Fac Upp Machines Accessed 39 | . 3 . 6 . 1 1 8 9 6 4 1 . Terminals 29 | . 3 . 5 . . 1 6 6 4 3 1 . Fabricators 5 | . . . . . . . . 3 2 . . . Repair Stations 1 | . . . . . . . 1 . . . . . Recycling Units . | . . . . . . . . . . . . . Scanalyzers 3 | . . . 1 . . . 1 . . 1 . . Garrison Access . | . . . . . . . . . . . . . Total Hacks 113 | . 9 . 15 . 1 2 23 27 18 16 2 . Successful 75 | . 5 . 11 . 1 . 16 15 14 11 2 . Failed 38 | . 4 . 4 . . 2 7 12 4 5 . . Catastrophic 6 | . . . 2 . . . 1 2 1 . . . Database Lockouts . | . . . . . . . . . . . . . Manual 84 | . 9 . 13 . 1 . 15 20 13 11 2 . Terminals 93 | . 9 . 13 . . 2 20 21 14 12 2 . Fabricators 10 | . . . . . . . . 6 4 . . . Repair Stations 2 | . . . . . . . 2 . . . . . Recycling Units . | . . . . . . . . . . . . . Scanalyzers 7 | . . . 2 . . . 1 . . 4 . . Garrison Access . | . . . . . . . . . . . . . Terminal Hacks 28 | . 2 . 3 . 1 . 7 4 6 4 1 . Record 1 | . . . . . . . 1 . . . . . Part Schematic 1 | . . . . . . . . . 1 . . . Robot Analysis 2 | . 2 . . . . . . . . . . . Level Access Points 1 | . . . . . . . . 1 . . . . Branch Access Points 2 | . . . 1 . . . 1 . . . . . Terminal Index 2 | . . . . . . . . 1 . 1 . . Fabricator Index 2 | . . . . . . . 1 1 . . . . Scanalyzer Index 2 | . . . 1 . . . . . . 1 . . Alert Level 4 | . . . 1 . . . 2 . 1 . . . Unreport Threat 2 | . . . . . . . 1 . 1 . . . Recall Investigation 3 | . . . . . . . . . 2 1 . . Recall Extermination 1 | . . . . . . . . . . . 1 . Recall Reinforcements 2 | . . . . . . . . . 1 1 . . Hauler Manifests 2 | . . . . . . . 1 1 . . . . Derelict Proto ID Bank 1 | . . . . . 1 . . . . . . . Fabricator Hacks 8 | . . . . . . . . 4 4 . . . Load Schematic 4 | . . . . . . . . 2 2 . . . Build 4 | . . . . . . . . 2 2 . . . Repair Station Hacks 2 | . . . . . . . 2 . . . . . Scan Component 1 | . . . . . . . 1 . . . . . Repair 1 | . . . . . . . 1 . . . . . Recycling Unit Hacks . | . . . . . . . . . . . . . Scanalyzer 7 | . . . 2 . . . 1 . . 4 . . Insert Component 4 | . . . 1 . . . 1 . . 2 . . Analyze 3 | . . . 1 . . . . . . 2 . . Garrison Access Hacks . | . . . . . . . . . . . . . Unauthorized Hacks 30 | . 3 . 6 . . . 6 7 4 3 1 . Terminals 30 | . 3 . 6 . . . 6 7 4 3 1 . Assimilate 1 | . . . . . . . . 1 . . . . Botnet 27 | . 3 . 5 . . . 6 5 4 3 1 . Operators 2 | . . . 1 . . . . 1 . . . . Fabricators . | . . . . . . . . . . . . . Repair Stations . | . . . . . . . . . . . . . Recycling Units . | . . . . . . . . . . . . . Scanalyzers . | . . . . . . . . . . . . . Garrison Access . | . . . . . . . . . . . . . Data Cores Recovered . | . . . . . . . . . . . . . Used . | . . . . . . . . . . . . . Hacking Detections 21 | . 3 . 4 . . . 3 6 3 2 . . Full Trace Events 9 | . 2 . 2 . . . . 2 2 1 . . Feedback Events 1 | . . . . . . . . . . 1 . . Hackware Fried 1 | . . . . . . . . . . 1 . . Feedback Blocked . | . . . . . . . . . . . . . Robot Schematics Acquired . | . . . . . . . . . . . . . Robots Built . | . . . . . . . . . . . . . Authchips . | . . . . . . . . . . . . . Time . | . . . . . . . . . . . . . Total Robot Build Rating . | . . . . . . . . . . . . . Part Schematics Acquired 4 | . . . 1 . . . . . 1 2 . . Parts Built 4 | . . . . . . . . 2 2 . . . Authchips . | . . . . . . . . . . . . . Time 249 | . . . . . . . . 109 140 . . . Total Part Build Rating 13 | . . . . . . . . 6 7 . . . Parts Repaired 1 | . . . . . . . 1 . . . . . Time 32 | . . . . . . . 32 . . . . . Parts Recycled . | . . . . . . . . . . . . . Recycled Matter . | . . . . . . . . . . . . . Retrieved Matter . | . . . . . . . . . . . . . Retrieved Components . | . . . . . . . . . . . . . Parts Scanalyzed 3 | . . . 1 . . . . . . 2 . . Part Schematics Acquired 3 | . . . 1 . . . . . . 2 . . Parts Damaged . | . . . . . . . . . . . . . Bothacking | -11 -10 -10 -9 -9 -9 -8 -8 -7 -6 -5 -4 -4 ------------ Run | Yrd Mat Min Mat Min Exi Min Mat Fac Fac Fac Fac Upp Used RIF Installer . | . . . . . . . . . . . . . Robots Hacked . | . . . . . . . . . . . . . Non-combat . | . . . . . . . . . . . . . Combat . | . . . . . . . . . . . . . Robot Hacks Applied . | . . . . . . . . . . . . . Relay Couplers Released . | . . . . . . . . . . . . . Fabnet Peak Effective % . | . . . . . . . . . . . . . Robots Rewired . | . . . . . . . . . . . . . Allies Hacked . | . . . . . . . . . . . . . Hacks Repelled . | . . . . . . . . . . . . . Allies | -11 -10 -10 -9 -9 -9 -8 -8 -7 -6 -5 -4 -4 -------- Run | Yrd Mat Min Mat Min Exi Min Mat Fac Fac Fac Fac Upp Total Allies 2 | . . 1 . . . . . 1 . . . . Largest Group 1 | . . 1 1 . . . . 1 . . . . Highest-Rated Group 31 | . . 31 31 . . . . 10 . . . . Highest-Rated Ally 31 | . . 31 31 . . . . 10 . . . . Total Orders . | . . . . . . . . . . . . . Ally Attacks 7 | . . . 7 . . . . . . . . . Total Damage 81 | . . . 81 . . . . . . . . . Kills 2 | . . . 2 . . . . . . . . . Allies Corrupted . | . . . . . . . . . . . . . Allies Melted . | . . . . . . . . . . . . . Intel | -11 -10 -10 -9 -9 -9 -8 -8 -7 -6 -5 -4 -4 ------- Run | Yrd Mat Min Mat Min Exi Min Mat Fac Fac Fac Fac Upp Robot Analysis Total 2 | . 2 . . . . . . . . . . . Derelict Logs Recovered . | . . . . . . . . . . . . . Drone Launches . | . . . . . . . . . . . . . Drone Recoveries . | . . . . . . . . . . . . . Exploration | -11 -10 -10 -9 -9 -9 -8 -8 -7 -6 -5 -4 -4 ------------- Run | Yrd Mat Min Mat Min Exi Min Mat Fac Fac Fac Fac Upp Turns Passed 15410 | 113 772 271 1771 151 311 432 2718 2521 3037 2057 1210 46 Spaces Moved 8969 | 58 481 258 984 94 230 304 1411 1483 1622 1174 791 79 Core 298 | 2 . . 4 . . . . . . 1 212 79 Treads 246 | 51 121 . 74 . . . . . . . . . Legs . | . . . . . . . . . . . . . Wheels 8394 | 5 360 258 906 94 230 304 1411 1483 1622 1146 575 . Hover . | . . . . . . . . . . . . . Flight 31 | . . . . . . . . . . 27 4 . Fastest Speed 50 | 50 95 90 90 135 135 135 130 125 110 115 50 50 Average Speed 130 | 149 118 92 134 135 135 135 141 132 134 138 108 50 Slowest Speed 1550 | 160 160 115 300 140 135 135 190 210 200 1550 617 50 Overloaded Moves . | . . . . . . . . . . . . . Propulsion Burnouts . | . . . . . . . . . . . . . Robots Hopped . | . . . . . . . . . . . . . Cave-ins Triggered . | . . . . . . . . . . . . . Exploration Rate (%) 37 | 5 63 44 45 20 64 63 70 36 27 15 17 16 Regions Visited 12 Branch Regions 5 Pre-discovered Areas . | . . . . . . . . . . . . . Known Exits Taken 2 | . . . 1 . . . . 1 . . . . Unknown Exits Taken 10 | 1 1 1 . 1 1 1 1 . 1 1 1 . Scrap Searched 1 | . . . . . . 1 . . . . . . Spaces Dug 101 | . . . 40 . . . 11 14 18 10 8 . Terrain Destroyed 306 | . . 3 130 85 . 19 17 14 18 10 10 . Melee 56 | . . . . . . . 11 14 18 10 3 . Projectile 7 | . . . . . . . . . . . 7 . AOE 243 | . . 3 130 85 . 19 6 . . . . . Terrain Rammed . | . . . . . . . . . . . . . Walls Destroyed . | . . . . . . . . . . . . . Machines Disabled . | . . . . . . . . . . . . . Actions | -11 -10 -10 -9 -9 -9 -8 -8 -7 -6 -5 -4 -4 --------- Run | Yrd Mat Min Mat Min Exi Min Mat Fac Fac Fac Fac Upp Total 11863 | 74 593 273 1297 110 230 317 2040 1935 2336 1521 1052 85 Wait 1943 | 1 39 4 161 1 . 3 434 278 583 257 176 6 Move 8957 | 57 480 257 983 93 229 303 1410 1482 1621 1173 790 79 Hop . | . . . . . . . . . . . . . Pick Up 110 | 5 5 1 17 5 1 . 32 24 10 3 7 . Fast Attach 48 | 7 3 . 6 . . . 2 7 9 10 4 . Attach 59 | . . 2 7 3 . 1 10 8 3 15 10 . Detach 13 | . 1 . 1 . . . 1 . . 10 . . Swap 89 | . 7 1 12 1 . 1 18 18 17 5 9 . Drop 78 | . 7 . 10 . . 1 22 25 11 2 . . Fire 217 | 4 51 8 100 7 . 8 3 . 2 . 34 . Melee 340 | . . . . . . . 103 93 80 46 18 . Ram 4 | . . . . . . . . . . . 4 . Kick . | . . . . . . . . . . . . . Crush . | . . . . . . . . . . . . . Escape Stasis . | . . . . . . . . . . . . . Rewire . | . . . . . . . . . . . . . Trap 5 | . . . . . . . 5 . . . . . Miscellaneous . | . . . . . . . . . . . . . Route ------- -11/Scrapyard -10/Materials (discovered 3 exits: *Mat x2 / [*Min]) -10/Mines (discovered 2 exits: *Mat x2) -9/Materials (discovered 4 exits: *Mat x2 / *Min x2) -9/Mines (discovered 2 exits: *Exi / [*Zio]) -9/Exiles (discovered 2 exits: *Min x2) -8/Mines -8/Materials (discovered 2 exits: *Fac / Sto) -7/Factory (discovered 4 exits: *Fac x4) -6/Factory -5/Factory (discovered 2 exits: *Fac / [*Ext]) -4/Factory -4/Upper Caves History --------- Turn | Location | Event 2 | -11/Scrapyard | Met Revision 17 16 | -11/Scrapyard | Discovered new exit (range 15) 114 | -11/Scrapyard | Entered Materials 257 | -10/Materials | Discovered new exit (range 9) 317 | -10/Materials | Build established: Mutant 444 | -10/Materials | Discovered new exit (range 6) 648 | -10/Materials | Discovered new exit (range 7) 886 | -10/Materials | Entered Mines 979 | -10/Mines | Discovered new exit (range 5) 1147 | -10/Mines | Discovered new exit (range 10) 1150 | -10/Mines | Received a Mining Laser from a helpful Derelict 1157 | -10/Mines | Entered Materials 1157 | -9/Materials | Accompanied by 1 ally 1157 | -9/Materials | Evolved 2 slots: Propulsion x1, Utility x1 1255 | -9/Materials | Build established: Scavenger-Mutant 1353 | -9/Materials | Lost 3 parts (1n2w) 1357 | -9/Materials | Discovered new exit (range 16) 1855 | -9/Materials | Build established: Mutant 2093 | -9/Materials | Discovered new exit (range 7) 2317 | -9/Materials | Identified exit to Mines 2331 | -9/Materials | Discovered new exit (range 17) 2566 | -9/Materials | Core integrity fell below 50% 2928 | -9/Materials | Entered Mines 2929 | -9/Mines | A Derelict revealed a hidden shortcut to a safe place 2930 | -9/Mines | Met a Derelict bent on vengeance 2970 | -9/Mines | Lost 3 parts (1p2n) 2993 | -9/Mines | Found a hidden stash of uninstalled traps 3071 | -9/Mines | Deemed a non-threat by the Exiles lab entrance 3072 | -9/Mines | Discovered new exit (range 5) 3079 | -9/Mines | Entered Exiles 3097 | -9/Exiles | Discovered new exit (range 15) 3113 | -9/Exiles | Met 8R-AWN 3133 | -9/Exiles | Met EX-HEX 3174 | -9/Exiles | Met EX-BIN 3193 | -9/Exiles | Aligned with FarCom system 3194 | -9/Exiles | Given EX-Vault access code 3225 | -9/Exiles | Opened EX-Vault 3235 | -9/Exiles | Found Longsword +1 3264 | -9/Exiles | Warned to stay clear of 0b10 Research branches 3306 | -9/Exiles | Met EX-DEC 3373 | -9/Exiles | Discovered new exit (range 12) 3390 | -9/Exiles | Left Exiles lab with Longsword +1 3390 | -9/Exiles | Entered Mines 3695 | -8/Mines | Build established: Skirmisher 3774 | -8/Mines | Discovered new exit (range 4) 3822 | -8/Mines | Entered Materials 3822 | -8/Materials | Evolved 2 slots: Utility x2 4437 | -8/Materials | Build established: Scavenger-Mutant 4509 | -8/Materials | Identified exit to Storage 5679 | -8/Materials | Build established: Scavenger-Assassin 5952 | -8/Materials | Discovered new exit (range 19) 6100 | -8/Materials | Core integrity fell below 50% 6146 | -8/Materials | Lost 4 parts (1p1n1u1w) 6280 | -8/Materials | Repaired Mni. Grenade Launcher 6481 | -8/Materials | Build established: Scavenger-Mutant 6540 | -8/Materials | Entered Factory 6540 | -7/Factory | Evolved 2 slots: Utility x2 6712 | -7/Factory | Fabricated Hacking Suite? 6964 | -7/Factory | Build established: Hacker-Assassin 7704 | -7/Factory | Build established: Hacker-Mutant 8407 | -7/Factory | Identified exit to Factory 8998 | -7/Factory | Fabricated Hacking Suite (x1) 9061 | -7/Factory | Entered another Factory area 9061 | -6/Factory | Evolved 2 slots: Propulsion x2 9508 | -6/Factory | Fabricated Hacking Suite (x1) 10122 | -6/Factory | Garrison activated, responded to threat 10650 | -6/Factory | Build established: Hacker-Assassin 11078 | -6/Factory | Build established: Hacker-Mutant 11709 | -6/Factory | Discovered new exit (range 15) 11755 | -6/Factory | Fabricated Cld. VTOL Module? 12098 | -6/Factory | Entered another Factory area 12098 | -5/Factory | Evolved 2 slots: Utility x2 12824 | -5/Factory | Build established: Hacker-Gladiator 12909 | -5/Factory | Discovered new exit (range 20) 13030 | -5/Factory | Lost 3 parts (1p2n) 13236 | -5/Factory | Lost 3 parts (1p2n) 13521 | -5/Factory | Hacking Suite fried by hacking feedback 13871 | -5/Factory | Lost 5 parts (1p2n2w) 14112 | -5/Factory | Discovered new exit (range 18) 14155 | -5/Factory | Entered another Factory area 14155 | -4/Factory | Evolved 2 slots: Utility x2 14493 | -4/Factory | Garrison activated, responded to threat 14536 | -4/Factory | Lost 4 parts (1p3n) 14844 | -4/Factory | Lost 4 parts (1p2u1w) 15100 | -4/Factory | Build established: Hacker-Mutant 15165 | -4/Factory | Discovered new exit (range 12) 15217 | -4/Factory | Released all parts (13) 15246 | -4/Factory | Core integrity fell below 50% 15247 | -4/Factory | Lost 6 parts (1p4n1w) 15365 | -4/Factory | Entered Upper Caves 15374 | -4/Upper Caves | Core integrity fell below 20% 15386 | -4/Upper Caves | Attracted the attention of an 0b10 checkpoint 15411 | -4/Upper Caves | Destroyed by G-73 Enforcer with Phase Gun Last Messages --------------- 15328_ Triggered Segregator Trap. 15328_ Arcs of energy rise from the floor. 15329_ Slammed into M-13 Machinist. 15336_ U-05 Engineer lays Concrete. 15341_ Penetrated by Slug. 15343_ Slug penetrates Wall. 15343_ Penetrated by Slug. 15348_ ALERT: Suspicious intruders detected, dispatching Specialist reinforcements to area. 15349_ System corrupted: Substantial component data lost. 15351_ Acquired 10 matter. 15356_ Acquired 32 matter. LOCATION=UNKNOWN GOAL=ESCAPE 15385_ Penetrated by Slug. 15386_ Y-64 Sentinel: "INTERCEPTING UNREGISTERED DERELICT." 15387_ Slug penetrates Wall. 15392_ 9W-7RT(r) destroyed. Map ----- +----------------------------------------------------+ | ?????????????????????????????????????????????????? | | ?????????????????????????????????????????????????? | | ?????????????????????????????????????????????????? | | ?????????????????????????????????????????????????? | | ?????????????????????????????????????????????????? | | ?????????????????????????????????????????????????? | | ?????????????????????????????????????????????????? | | ?????????????????????????????????#######?????????? | | ?????????????????????????????????# #?????????? | | ?????????????????????????????????# " " #?????????? | | ?????????????????????????????????# " " #?????????? | | ?????????????????????????????????# " #?????????? | | ?????????????????????????????????# "" #?????????? | | ?????????????????????????????????# ####??????? | | ????????????????????????????????## #??????? | | ???????????????????????????????## #??????? | | ????????????????????????????#### ##??????# | | ??????????????????????????### ### #???##?# | | ?????????????????????????## #??###??# ## | | ????????????????????????## ##??????? | | ????????????????????????# #???????# | | ????????????????????????# ### ##?????## # | | ????????????????????????## ### ##????## #? | | ????????????????????????## ## ###?## #? | | ???????????????????????## ### #?? | | ??????????????????????## @ ## ??? | | ?????????????????????## ## #???# | | ?????????????????????# ##?# ###### | | ?????????????????????# #?## ### | | ????????????????????# ### ## | | ???????????????????# r ### | | ?????????????????? ### ###gg #####?? | | ????????????????? r##?####?## #????? | | ???????????????? #?????????# #????# | | ??????????????? #??????????# #????# | | ?????????????? ???????????## ???# | | ?????????????? #????????????## #?? | | ???????????????? ##??????????????#% ### ## #?# | | ?????????????????? ????????????????# #??##?##?# | | ???????????????????????????????????? ????????# | | ??????????????????????????????????? ????##### | | ?????????????????????????????????? ??## ## | | ????????????????????????????????????## #??# | | ?????????????????????????????????????? ##??# | | ?????????????????????????????????????? #???# ## | | ?????????????????????????????????????? ##### ## | | ????????????????????????????????????## # ## | | ????????????????????????????????????# | | ???????????????????????????????????# | | ???????????????????????????????????## | +----------------------------------------------------+ Best States ------------- Heat Dissipation 62 Energy Generation 18 Energy Capacity 310 Matter Stores 300 Matter Capacity 300 Sight Range 20 Robot Scan Range 14 Terrain Scan Range 20 Terrain Scan Density 210 Jamming Range 16 Corruption Block 7 Armor Coverage 450 Resistance: EM 20 Utility Shielding 66 Evasion (%) 50 Targeting Accuracy 20 Melee Accuracy 16 Target Analysis 6 Core Analysis 6 Recoil Reduction 1 Offensive Hacking 32 Defensive Hacking 10 Item Schematics ----------------- Hacking Suite | -9/Materials | Scanalyzed Cld. VTOL Module | -6/Factory | Hacked Imp. Hacking Suite | -5/Factory | Scanalyzed Com. Ion Cannon | -5/Factory | Scanalyzed Robot Schematics ------------------ None Fabricated ------------ Hacking Suite | x1 | -7/Factory Hacking Suite | x1 | -7/Factory Hacking Suite | x1 | -6/Factory Cld. VTOL Module | x1 | -6/Factory Alien Tech Used ----------------- None Achievements -------------- None Challenges ------------ None Game ------ Seed GhostMiniWeb Manual? 0 Play Time 02:22:32 Cumulative 40.9 hours Start 2024.03.12 @ 19:05:09 End 2024.03.12 @ 21:35:41 Sessions 1 Manual Loads 0 Difficulty Rogue Special Mode None Game No. 41 Rogue 41 Adventurer 0 Explorer 0 Win Type - Total 0 Types 0/0/0/0/0/0/0/0/0 Lore% 22 Gallery% 28 Achievement% 25 Wizard Run 0 Options --------- Layout 1 ASCII 0 Keyboard 0 Movement Numpad Keybinds 0 Fullscreen 2 Font 24/X11 Map View 50x35 Zoom Use 0% Tactical HUD 1 Map Filters NONE Filters NONE Steam 0 RUN: d0eb2507-a794-4e3d-b12d-6b080f89ecad